fUST/lending_fUST_20241004
["ID","MTS","AMOUNT","RATE_DAILY","PERIOD"]
[339810268,1728009032110,-500.65353268,0.00013973,2]
[339810269,1728009032120,-500.59951267,0.00013973,2]
[339810270,1728009032130,-502.41262751,0.00013973,2]
[339810271,1728009032139,-510.1335021,0.00013973,2]
[339810272,1728009032148,-500.0,0.00013973,2]
[339810273,1728009032157,-500.82290927,0.00013973,2]
[339810274,1728009032166,-500.0,0.00013973,2]
[339810275,1728009032175,-503.45199595,0.00013973,2]
[339810276,1728009032184,-349.82457564,0.00013979,2]
[339810278,1728009032194,-178.02102991,0.00013979,2]
[339810280,1728009032203,-500.0,0.00013979,2]
[339810282,1728009032212,-500.0,0.00013979,2]
[339810284,1728009032222,-448.16219432,0.00013979,2]
[339810297,1728009032468,-500.0,0.00013979,2]
[339810298,1728009032479,-500.0,0.00013979,2]
[339810299,1728009032489,-500.0,0.00013979,2]
[339810300,1728009032499,-500.0,0.00013979,2]
[339810301,1728009032510,-7635.95834796,0.00013979,2]
[339810302,1728009032522,-1903.95086076,0.00013979,2]
[339810314,1728009040132,-1430.10468855,0.00013969,2]
[339810315,1728009040144,-3705.80167888,0.00013979,2]
[339810316,1728009040154,-32312.9590649,0.00013979,2]
[339810317,1728009040164,-222.189272,0.0001398,2]
[339810318,1728009040175,-151.0,0.0001398,2]
[339810319,1728009040185,-151.0,0.0001398,2]
[339810320,1728009040194,-151.0,0.0001398,2]
[339810321,1728009040204,-151.0,0.0001398,2]
[339810322,1728009040214,-151.0,0.0001398,2]
[339810323,1728009040223,-151.0,0.0001398,2]
[339810324,1728009040233,-151.0,0.0001398,2]
[339810325,1728009040242,-151.0,0.0001398,2]
[339810326,1728009040253,-151.0,0.0001398,2]
[339810327,1728009040262,-151.0,0.0001398,2]
[339810328,1728009040272,-263.649943,0.0001398,2]
[339810329,1728009040282,-151.0,0.0001398,2]
[339810330,1728009040291,-151.0,0.0001398,2]
[339810331,1728009040301,-151.0,0.0001398,2]
[339810332,1728009040311,-151.0,0.0001398,2]
[339810333,1728009040324,-196.109028,0.0001398,2]
[339810334,1728009040334,-151.0,0.0001398,2]
[339810335,1728009040343,-151.0,0.0001398,2]
[339810336,1728009040353,-151.0,0.0001398,2]
[339810337,1728009040363,-1163.183318,0.0001398,2]
[339810338,1728009040372,-1163.183318,0.0001398,2]
[339810339,1728009040382,-500.0,0.0001398,2]
[339810340,1728009040391,-150.0,0.0001398,2]
[339810341,1728009040404,-13245.7108876,0.0001398,2]
[339810342,1728009040414,-12213.27520522,0.0001398,2]
[339810352,1728009043082,-7792.27383519,0.0001398,2]
[339810361,1728009045962,-649.0,0.0001398,2]
[339810364,1728009046083,-6099.68617511,0.0001398,2]
[339810366,1728009259800,323.2,0.0001,10]
[339810370,1728010054180,-809.23,0.00010959,2]
[339810371,1728010054205,-356.05,0.00010959,2]
[339810372,1728010054225,-272.639077,0.00012603,2]
[339810373,1728010054249,-250.0,0.00013033,2]
[339810374,1728010054271,-325.810351,0.00013091,2]
[339810375,1728010054292,-676.3588442,0.000133,2]
[339810376,1728010054312,-183.178902,0.00013589,2]
[339810377,1728010054333,-163.884225,0.00013589,2]
[339810378,1728010054354,-189.675275,0.00013589,2]
[339810379,1728010054374,-166.666666,0.00013699,2]
[339810380,1728010054396,-242.239198,0.00013699,2]
[339810381,1728010054416,-183.178902,0.00013759,2]
[339810382,1728010054437,-189.675275,0.00013759,2]
[339810383,1728010054458,-2219.05571327,0.00013797,2]
[339810384,1728010054479,-300.0,0.00013799,2]
[339810385,1728010054499,-56.46612084,0.000138,2]
[339810387,1728010140897,150000.0,0.0001,2]
[339810444,1728010238345,-166.666666,0.00013699,2]
[339810445,1728010238356,-619.89272336,0.000138,2]
[339810446,1728010238365,-175.84128473,0.0001389,2]
[339810447,1728010238375,-1000.0,0.000139,2]
[339810448,1728010238385,-183.178902,0.00013928,2]
[339810449,1728010238394,-189.675275,0.00013928,2]
[339810450,1728010238404,-500.57173792,0.00013973,2]
[339810451,1728010238416,-4.48665815,0.00013973,2]
[339810452,1728010238430,-496.62473179,0.00013973,2]
[339810453,1728010238440,-501.00313621,0.00013973,2]
[339810454,1728010238451,-300.0,0.00013978,2]
[339810455,1728010238461,-300.0,0.00013978,2]
[339810456,1728010238470,-953.4031257,0.00013979,2]
[339810457,1728010238480,-463.0,0.0001398,2]
[339810458,1728010238489,-244.87720295,0.00013989,2]
[339810459,1728010238499,-500.0,0.00013989,2]
[339810460,1728010238510,-413.71353602,0.00013989,2]
[339810461,1728010238520,-500.0,0.00013989,2]
[339810462,1728010238530,-500.0,0.00013989,2]
[339810463,1728010238541,-500.0,0.00013989,2]
[339810464,1728010238552,-185.7085556,0.0001399,2]
[339810465,1728010238561,-154.224633,0.0001399,2]
[339810466,1728010238570,-460.360306,0.0001399,2]
[339810467,1728010238579,-152.209573,0.0001399,2]
[339810468,1728010238588,-151.0,0.0001399,2]
[339810469,1728010238598,-151.0,0.0001399,2]
[339810470,1728010238607,-5000.0,0.0001399,2]
[339810471,1728010238616,-23785.13213729,0.0001399,2]
[339810491,1728010243170,-12534.15751091,0.0001399,2]
[339810492,1728010243182,-1446.16809758,0.0001399,2]
[339810542,1728011432375,-290.361351,0.00012603,2]
[339810544,1728011432385,-178.316791,0.00012802,2]
[339810545,1728011432396,-178.316791,0.00013135,2]
[339810546,1728011432406,-500.0,0.000133,2]
[339810547,1728011432415,-178.316791,0.00013469,2]
[339810548,1728011432425,-454.8743606,0.000135,2]
[339810549,1728011432435,-161.492798,0.00013699,2]
[339810550,1728011432444,-166.666666,0.00013699,2]
[339810551,1728011432454,-153.3571712,0.000137,2]
[339810552,1728011432464,-307.2801001,0.000137,2]
[339810553,1728011432473,-59.05530559,0.000138,2]
[339810591,1728011440461,-440.94469441,0.000138,2]
[339810592,1728011440471,-300.0,0.000138,3]
[339810593,1728011440481,-300.0,0.00013899,2]
[339810594,1728011440490,-300.0,0.00013899,2]
[339810595,1728011440499,-185.70855561,0.000139,2]
[339810596,1728011440509,-10978.0,0.000139,2]
[339810597,1728011440519,-32567.80703072,0.000139,2]
[339810598,1728011440528,-1000.0,0.000139,2]
[339810599,1728011440537,-350.0,0.000139,3]
[339810600,1728011440547,-1065.31788394,0.00013942,2]
[339810601,1728011440557,-1256.16604815,0.00013962,2]
[339810602,1728011440567,-500.6929737,0.00013973,2]
[339810603,1728011440576,-19888.52921762,0.00013979,2]
[339810614,1728011443463,-6455.0,0.00013979,2]
[339810627,1728011552756,253.43833193,0.00010206,3]
[339810631,1728011892805,150.0,0.0002017,120]
[339810643,1728012420903,202.00822599,0.0001,2]
[339810644,1728012439165,-374.21,0.00010959,2]
[339810645,1728012439187,-305.629799,0.00012603,2]
[339810646,1728012439208,-4945.19630415,0.00012925,2]
[339810647,1728012439229,-500.0,0.00013205,2]
[339810648,1728012439250,-466.03547905,0.00013322,2]
[339810649,1728012439273,-159.108838,0.00013589,2]
[339810650,1728012439295,-191.749746,0.00013589,2]
[339810651,1728012439317,-161.492798,0.00013699,2]
[339810652,1728012439341,-166.666666,0.00013699,2]
[339810653,1728012439363,-529.076533,0.00013705,2]
[339810654,1728012439386,-18.53256049,0.00013795,2]
[339810712,1728012638595,-605.5564865,0.00013,2]
[339810713,1728012638606,-500.0,0.00013205,2]
[339810714,1728012638615,-909.080925,0.00013705,2]
[339810715,1728012638626,-297.38,0.000138,3]
[339810716,1728012638638,-2173.99582302,0.00013861,2]
[339810717,1728012638649,-1275.86894288,0.00013879,2]
[339810718,1728012638659,-300.0,0.000139,3]
[339810719,1728012638669,-1000.0,0.000139,2]
[339810720,1728012638679,-244.825,0.0001392,2]
[339810721,1728012638689,-1256.16604815,0.0001395,2]
[339810722,1728012638698,-300.0,0.00013969,2]
[339810723,1728012638708,-300.0,0.00013969,2]
[339810724,1728012638717,-162.8018376,0.0001397,2]
[339810725,1728012638727,-10143.09166685,0.0001397,2]
[339810726,1728012638742,-147.37373345,0.0001397,2]
[339810727,1728012638753,-32650.4803016,0.0001397,2]
[339810728,1728012638765,-171.41404206,0.00013979,2]
[339810729,1728012638774,-500.0,0.00013979,2]
[339810730,1728012638783,-189.59947522,0.00013979,2]
[339810731,1728012638794,-500.0,0.00013979,2]
[339810732,1728012638803,-500.0,0.00013979,2]
[339810733,1728012638814,-151.0,0.0001398,2]
[339810734,1728012638824,-151.0,0.0001398,2]
[339810735,1728012638834,-151.0,0.0001398,2]
[339810736,1728012638843,-294.12083,0.0001398,2]
[339810737,1728012638853,-151.0,0.0001398,2]
[339810738,1728012638863,-503.337091,0.0001398,2]
[339810739,1728012638873,-151.0,0.0001398,2]
[339810740,1728012638882,-503.337091,0.0001398,2]
[339810741,1728012638892,-151.0,0.0001398,2]
[339810742,1728012638903,-3522.670303,0.0001398,2]
[339810758,1728012643566,-161.492798,0.00013699,2]
[339810759,1728012643576,-6018.50720199,0.0001398,2]
[339810769,1728012653927,245.0,0.00010959,2]
[339810771,1728012940788,151.0,0.0002017,120]
[339810791,1728013646313,-287.25,0.00010959,2]
[339810792,1728013646336,-239.37,0.00010959,2]
[339810793,1728013646357,-199.48,0.00010959,2]
[339810794,1728013646379,-166.23,0.00010959,2]
[339810795,1728013646401,-831.17,0.00010959,2]
[339810796,1728013646425,-330.339222,0.00012603,2]
[339810797,1728013646447,-210.228441,0.00012909,2]
[339810798,1728013646470,-210.228441,0.00013582,2]
[339810799,1728013646492,-300.0,0.00013588,2]
[339810800,1728013646513,-183.178902,0.00013589,2]
[339810801,1728013646535,-163.884225,0.00013589,2]
[339810802,1728013646557,-189.675275,0.00013589,2]
[339810803,1728013646577,-166.666666,0.00013699,2]
[339810804,1728013646599,-2219.05571327,0.00013814,2]
[339810805,1728013646620,-1015.21068148,0.0001387,2]
[339810838,1728013832439,-242.2392018,0.00013699,2]
[339810840,1728013832449,-128.40730426,0.0001387,2]
[339810851,1728013832539,-861.07668561,0.0001387,2]
[339810853,1728013832549,-154.68999948,0.0001387,2]
[339810855,1728013832559,-1000.0,0.00013889,2]
[339810857,1728013832569,-361.8985813,0.0001389,2]
[339810859,1728013832579,-1130.54944338,0.000139,2]
[339810861,1728013832589,-300.0,0.00013941,2]
[339810863,1728013832598,-15010.50298039,0.00013942,2]
[339810865,1728013832607,-500.0,0.00013969,2]
[339810867,1728013832617,-500.0,0.00013969,2]
[339810869,1728013832626,-182.71963265,0.00013969,2]
[339810870,1728013832636,-162.8018376,0.0001397,2]
[339810872,1728013832645,-22685.27052836,0.0001397,2]
[339810874,1728013832654,-29327.8263909,0.0001397,2]
[339810876,1728013832664,-57374.13205766,0.0001397,2]
[339810898,1728013838558,-15750.43447349,0.0001397,2]
[339810901,1728013842240,-643.31,0.0001397,2]
[339810904,1728013861332,155.93367706,0.00010959,2]
[339810905,1728013989645,151.0,0.0002017,120]
[339810914,1728014864235,-513.27,0.00010959,2]
[339810915,1728014864258,-160.79084462,0.00012586,2]
[339810937,1728015037770,-345.555405,0.00012603,2]
[339810938,1728015037781,-248.3251513,0.00012623,2]
[339810939,1728015037790,-325.810351,0.0001268,2]
[339810940,1728015037800,-163.092203,0.00012955,2]
[339810941,1728015037810,-163.092203,0.00012988,2]
[339810942,1728015037820,-163.092203,0.0001302,2]
[339810943,1728015037829,-733.024476,0.00013205,2]
[339810944,1728015037839,-467.90096569,0.00013289,2]
[339810945,1728015037848,-166.666666,0.00013699,2]
[339810946,1728015037859,-1000.0,0.00013878,2]
[339810947,1728015037868,-1017.49449906,0.0001388,2]
[339810948,1728015037878,-300.0,0.00013899,2]
[339810949,1728015037888,-300.0,0.00013899,2]
[339810950,1728015037898,-5746.99261011,0.000139,2]
[339810951,1728015037907,-465.14504828,0.00013953,2]
[339810952,1728015037917,-500.0,0.00013959,2]
[339810953,1728015037927,-152.33088443,0.00013959,2]
[339810954,1728015037939,-500.0,0.00013959,2]
[339810955,1728015037949,-500.0,0.00013959,2]
[339810956,1728015037959,-500.0,0.00013959,2]
[339810957,1728015037969,-500.0,0.00013959,2]
[339810958,1728015037979,-500.0,0.00013959,2]
[339810959,1728015037989,-500.0,0.00013959,2]
[339810960,1728015038000,-500.0,0.00013959,2]
[339810961,1728015038010,-500.0,0.00013959,2]
[339810962,1728015038021,-500.0,0.00013959,2]
[339810963,1728015038032,-500.0,0.00013959,2]
[339810964,1728015038042,-500.0,0.00013959,2]
[339810965,1728015038053,-500.0,0.00013959,2]
[339810966,1728015038062,-500.0,0.00013959,2]
[339810967,1728015038072,-8633.0227137,0.0001396,2]
[339810968,1728015038082,-854.04882686,0.0001396,2]
[339810969,1728015038091,-184.50753476,0.0001396,2]
[339810970,1728015038101,-34532.0908548,0.0001396,2]
[339810971,1728015038110,-3416.19530744,0.0001396,2]
[339810972,1728015038119,-8633.0227137,0.00013968,2]
[339810973,1728015038129,-854.04882686,0.00013968,2]
[339810974,1728015038138,-8633.0227137,0.00013969,2]
[339810975,1728015038147,-403.24709467,0.00013969,2]
[339810978,1728015040251,151.0,0.0002017,120]
[339810994,1728015042826,-450.80173219,0.00013969,2]
[339810995,1728015042836,-500.0,0.00013969,2]
[339810996,1728015042845,-327.90374286,0.00013969,2]
[339810997,1728015042854,-4891.29452495,0.0001397,2]
[339811047,1728015045856,-391.08525692,0.0001397,2]
[339811057,1728016034153,-374.21,0.00010959,2]
[339811058,1728016034174,-328.277634,0.00012603,2]
[339811059,1728016034195,-300.0,0.00012999,2]
[339811060,1728016034222,-300.0,0.00012999,2]
[339811061,1728016034244,-500.0,0.00013,2]
[339811062,1728016034268,-500.0,0.00013,2]
[339811063,1728016034289,-500.0,0.00013,2]
[339811064,1728016034310,-500.0,0.00013,2]
[339811065,1728016034330,-500.0,0.00013,2]
[339811066,1728016034352,-500.0,0.00013,2]
[339811067,1728016034373,-500.0,0.00013,2]
[339811068,1728016034395,-500.0,0.00013,2]
[339811069,1728016034419,-500.0,0.00013,2]
[339811070,1728016034442,-166.666666,0.00013699,2]
[339811071,1728016034466,-1134.18063578,0.00013867,2]
[339811072,1728016086230,151.0,0.0002017,120]
[339811087,1728016154150,-245.0,0.00010959,2]
[339811163,1728016240075,-333.734997,0.00012603,2]
[339811164,1728016240085,-4945.19630415,0.00012966,2]
[339811165,1728016240094,-500.0,0.00013205,2]
[339811166,1728016240103,-529.076533,0.00013705,2]
[339811167,1728016240113,-1065.23078442,0.0001386,2]
[339811168,1728016240123,-428.42749484,0.0001389,2]
[339811248,1728016246221,-487.31755426,0.0001389,2]
[339811250,1728016246232,-132.77970908,0.00013957,2]
[339811282,1728017133346,151.0,0.0002017,120]
[339811287,1728017231144,-174.0,0.00010958,2]
[339811288,1728017231184,-300.0,0.00010958,2]
[339811289,1728017231216,-166.23,0.00010959,2]
[339811290,1728017231254,-259.54,0.00010959,2]
[339811291,1728017231288,-216.28,0.00010959,2]
[339811292,1728017231321,-180.24,0.00010959,2]
[339811293,1728017231356,-150.2,0.00010959,2]
[339811294,1728017231384,-751.01,0.00010959,2]
[339811295,1728017231416,-420.0,0.00012042,2]
[339811296,1728017231448,-333.565208,0.00012603,2]
[339811297,1728017231485,-167.61422,0.00012772,2]
[339811298,1728017231511,-863.9455592,0.0001297,2]
[339811299,1728017231543,-167.61422,0.00012994,2]
[339811300,1728017231574,-167.61422,0.00013215,2]
[339811301,1728017231610,-587.0,0.00013233,2]
[339811302,1728017231639,-167.61422,0.00013437,2]
[339811303,1728017231672,-1903.63665645,0.00013662,2]
[339811315,1728017404711,155.93,0.00010959,2]
[339811348,1728017440039,-161.492798,0.00013699,2]
[339811349,1728017440051,-166.666666,0.00013699,2]
[339811350,1728017440061,-1065.31788394,0.0001386,2]
[339811351,1728017440070,-824.17054419,0.00013869,2]
[339811352,1728017440080,-2000.0,0.00013878,2]
[339811353,1728017440089,-300.0,0.00013937,2]
[339811354,1728017440098,-500.0,0.00013937,2]
[339811355,1728017440110,-350.25898716,0.00013937,2]
[339811356,1728017440120,-184.50753476,0.00013938,2]
[339811357,1728017440131,-24705.48602268,0.00013938,2]
[339811358,1728017440141,-23664.19912146,0.00013938,2]
[339811359,1728017440152,-7590.8718607,0.00013939,2]
[339811360,1728017440161,-30969.0070841,0.00013939,2]
[339811361,1728017440171,-7590.8718607,0.00013939,2]
[339811362,1728017440180,-30969.0070841,0.00013939,2]
[339811363,1728017440190,-500.0,0.00013939,2]
[339811364,1728017440199,-282.8423059,0.00013939,2]
[339811365,1728017440210,-7590.8718607,0.0001394,2]
[339811366,1728017440219,-13584.4570558,0.0001394,2]
[339811381,1728018177950,151.0,0.0002017,120]
[339811405,1728018632183,-345.555405,0.00012603,2]
[339811406,1728018632195,-250.0000031,0.00012913,2]
[339811407,1728018632205,-109.81457657,0.00013537,2]
[339811441,1728018646344,-205.60448025,0.00013537,2]
[339811442,1728018646354,-166.666666,0.00013699,2]
[339811443,1728018646363,-1000.0,0.00013737,2]
[339811444,1728018646373,-1000.0,0.00013751,2]
[339811445,1728018646382,-1000.0,0.00013815,2]
[339811446,1728018646393,-1000.0,0.00013875,2]
[339811447,1728018646403,-306.0,0.000139,2]
[339811448,1728018646412,-1000.0,0.00013901,2]
[339811449,1728018646421,-2000.0,0.0001392,2]
[339811450,1728018646431,-300.0,0.00013929,2]
[339811451,1728018646440,-184.50753476,0.0001393,2]
[339811452,1728018646449,-7896.64651893,0.0001393,2]
[339811453,1728018646459,-27192.8835229,0.0001393,2]
[339811454,1728018646468,-7896.64651893,0.00013937,2]
[339811455,1728018646477,-5334.47992124,0.00013937,2]
[339811524,1728019653189,-785.87,0.00010959,2]
[339811525,1728019653215,-374.21,0.00010959,2]
[339811526,1728019653237,-345.555406,0.00012603,2]
[339811527,1728019653271,-160.7908447,0.00012878,2]
[339811528,1728019653293,-166.666666,0.00013699,2]
[339811529,1728019653315,-152.03949436,0.00013701,2]
[339811530,1728019653337,-1000.0,0.00013729,2]
[339811531,1728019653359,-1000.0,0.00013732,2]
[339811532,1728019653382,-1000.0,0.00013797,2]
[339811533,1728019653405,-307.2835926,0.000138,2]
[339811534,1728019653428,-1000.0,0.00013805,2]
[339811535,1728019653455,-1058.9782715,0.0001381,2]
[339811536,1728019653477,-570.87566692,0.00013814,2]
[339811539,1728019760154,-245.0,0.00010959,2]
[339811584,1728019838431,-166.666666,0.00013699,2]
[339811586,1728019838440,-152.74843868,0.000138,2]
[339811588,1728019838459,-434.02799558,0.00013814,2]
[339811590,1728019838469,-158.58218775,0.00013819,2]
[339811592,1728019838478,-158.58218775,0.0001383,2]
[339811594,1728019838489,-1000.0,0.0001383,2]
[339811596,1728019838498,-300.0,0.00013838,2]
[339811598,1728019838508,-300.0,0.00013838,2]
[339811600,1728019838522,-3334.17108307,0.00013839,2]
[339811613,1728019838617,-1786.81364966,0.00013839,2]
[339811616,1728019838641,-8534.32023392,0.00013839,2]
[339811618,1728019838651,-741.75348978,0.00013847,2]
[339811620,1728019838660,-1000.0,0.00013866,2]
[339811622,1728019838669,-1000.0,0.0001388,2]
[339811624,1728019838679,-1005.21767653,0.00013894,2]
[339811627,1728019838689,-150.1629,0.000139,2]
[339811629,1728019838698,-3000.0,0.000139,30]
[339811631,1728019838708,-1000.0,0.00013902,2]
[339811633,1728019838717,-500.0,0.00013908,2]
[339811635,1728019838727,-500.0,0.00013908,2]
[339811637,1728019838736,-500.0,0.00013908,2]
[339811639,1728019838746,-500.0,0.00013908,2]
[339811641,1728019838755,-500.0,0.00013908,2]
[339811643,1728019838765,-488.88494641,0.00013908,2]
[339811645,1728019838774,-198.70876069,0.00013908,2]
[339811647,1728019838783,-8245.61264614,0.00013909,2]
[339811648,1728019838792,-1548.45035421,0.00013909,2]
[339811650,1728019838802,-8245.61264614,0.00013909,2]
[339811653,1728019838812,-1548.45035421,0.00013909,2]
[339811655,1728019838823,-3000.0,0.0001391,30]
[339811657,1728019838833,-1000.0,0.0001391,2]
[339811659,1728019838843,-13569.95770125,0.00013917,2]
[339811676,1728019840534,-11135.52832143,0.00013917,2]
[339811677,1728019840545,-8245.61264614,0.00013917,2]
[339811678,1728019840556,-1548.45035421,0.00013917,2]
[339811679,1728019840566,-151.0,0.00013917,2]
[339811680,1728019840576,-151.0,0.00013917,2]
[339811681,1728019840585,-151.0,0.00013917,2]
[339811682,1728019840595,-28763.74724235,0.00013917,2]
[339811683,1728019840605,-151.0,0.00013918,2]
[339811684,1728019840615,-151.0,0.00013918,2]
[339811685,1728019840625,-483.203382,0.00013918,2]
[339811686,1728019840634,-161.20237,0.00013918,2]
[339811687,1728019840644,-483.203382,0.00013918,2]
[339811688,1728019840653,-151.0,0.00013918,2]
[339811689,1728019840663,-154.902295,0.00013918,2]
[339811690,1728019840673,-230.864851,0.00013918,2]
[339811691,1728019840682,-230.864851,0.00013918,2]
[339811692,1728019840692,-151.0,0.00013918,2]
[339811693,1728019840702,-151.0,0.00013918,2]
[339811694,1728019840714,-151.0,0.00013918,2]
[339811695,1728019840725,-151.0,0.00013918,2]
[339811696,1728019840737,-151.0,0.00013918,2]
[339811697,1728019840748,-151.0,0.00013918,2]
[339811698,1728019840758,-151.0,0.00013918,2]
[339811699,1728019840767,-152.713068,0.00013918,2]
[339811700,1728019840777,-503.150713,0.00013918,2]
[339811701,1728019840786,-503.150713,0.00013918,2]
[339811702,1728019840795,-263.649943,0.00013918,2]
[339811703,1728019840805,-151.0,0.00013918,2]
[339811704,1728019840815,-181.331441,0.00013918,2]
[339811705,1728019840825,-151.0,0.00013918,2]
[339811706,1728019840834,-151.0,0.00013918,2]
[339811707,1728019840843,-181.331441,0.00013918,2]
[339811708,1728019840853,-151.0,0.00013918,2]
[339811709,1728019840862,-151.0,0.00013918,2]
[339811710,1728019840871,-151.0,0.00013918,2]
[339811711,1728019840881,-151.0,0.00013918,2]
[339811712,1728019840890,-500.0,0.00013918,2]
[339811713,1728019840899,-341.06730991,0.00013918,2]
[339811714,1728019840908,-210.19894358,0.00013918,2]
[339811715,1728019840918,-500.0,0.00013918,2]
[339811716,1728019840927,-594.40598387,0.00013918,2]
[339811717,1728019840936,-188.93115498,0.00013918,2]
[339811718,1728019840946,-500.0,0.00013918,2]
[339811719,1728019840955,-16491.2252923,0.00013919,2]
[339811720,1728019840965,-3096.90070842,0.00013919,2]
[339811721,1728019840974,-153.511122,0.00013919,2]
[339811722,1728019840983,-152.010955,0.00013919,2]
[339811723,1728019840993,-4841.222506,0.00013919,2]
[339811724,1728019841004,-4841.222506,0.00013919,2]
[339811725,1728019841014,-155.917201,0.00013919,2]
[339811726,1728019841024,-4841.222506,0.00013919,2]
[339811727,1728019841033,-4841.222506,0.00013919,2]
[339811728,1728019841043,-152.239741,0.00013919,2]
[339811729,1728019841052,-483.203382,0.00013919,2]
[339811730,1728019841061,-483.203382,0.00013919,2]
[339811731,1728019841071,-483.203382,0.00013919,2]
[339811732,1728019841081,-483.203382,0.00013919,2]
[339811733,1728019841090,-151.0,0.00013919,2]
[339811734,1728019841101,-151.0,0.00013919,2]
[339811735,1728019841110,-230.864851,0.00013919,2]
[339811736,1728019841119,-230.864851,0.00013919,2]
[339811737,1728019841129,-230.864851,0.00013919,2]
[339811738,1728019841139,-230.864851,0.00013919,2]
[339811739,1728019841148,-151.0,0.00013919,2]
[339811740,1728019841158,-230.864851,0.00013919,2]
[339811741,1728019841176,-151.0,0.00013919,2]
[339811742,1728019841186,-151.0,0.00013919,2]
[339811743,1728019841195,-230.864851,0.00013919,2]
[339811744,1728019841205,-151.0,0.00013919,2]
[339811745,1728019841215,-256.353058,0.00013919,2]
[339811746,1728019841226,-151.0,0.00013919,2]
[339811747,1728019841239,-151.0,0.00013919,2]
[339811748,1728019841251,-152.222515,0.00013919,2]
[339811749,1728019841260,-151.0,0.00013919,2]
[339811750,1728019841270,-151.0,0.00013919,2]
[339811751,1728019841280,-151.0,0.00013919,2]
[339811752,1728019841290,-151.0,0.00013919,2]
[339811753,1728019841299,-151.0,0.00013919,2]
[339811754,1728019841309,-151.0,0.00013919,2]
[339811755,1728019841319,-151.0,0.00013919,2]
[339811756,1728019841329,-151.0,0.00013919,2]
[339811757,1728019841339,-503.150713,0.00013919,2]
[339811758,1728019841350,-503.150713,0.00013919,2]
[339811759,1728019841361,-503.150713,0.00013919,2]
[339811760,1728019841370,-503.150713,0.00013919,2]
[339811761,1728019841380,-152.851195,0.00013919,2]
[339811762,1728019841390,-181.331441,0.00013919,2]
[339811763,1728019841399,-181.331441,0.00013919,2]
[339811764,1728019841409,-151.0,0.00013919,2]
[339811765,1728019841420,-151.0,0.00013919,2]
[339811766,1728019841431,-151.0,0.00013919,2]
[339811767,1728019841442,-151.0,0.00013919,2]
[339811768,1728019841452,-181.331441,0.00013919,2]
[339811769,1728019841461,-181.331441,0.00013919,2]
[339811770,1728019841473,-151.0,0.00013919,2]
[339811771,1728019841482,-151.0,0.00013919,2]
[339811772,1728019841492,-158.387943,0.00013919,2]
[339811773,1728019841502,-151.0,0.00013919,2]
[339811774,1728019841512,-151.0,0.00013919,2]
[339811775,1728019841526,-154.798439,0.00013919,2]
[339811776,1728019841536,-8245.61264614,0.00013919,2]
[339811777,1728019841545,-1548.45035421,0.00013919,2]
[339811778,1728019841556,-3000.0,0.0001392,30]
[339811779,1728019841566,-151.0,0.0001392,2]
[339811780,1728019841575,-16491.2252923,0.0001392,2]
[339811781,1728019841780,-3096.90070842,0.0001392,2]
[339811782,1728019841790,-1000.0,0.00013923,2]
[339811783,1728019841799,-1000.0,0.00013925,2]
[339811784,1728019841809,-151.0,0.00013925,2]
[339811785,1728019841819,-503.150713,0.00013925,2]
[339811786,1728019841829,-503.150713,0.00013925,2]
[339811787,1728019841839,-181.331441,0.00013925,2]
[339811788,1728019841849,-181.331441,0.00013925,2]
[339811789,1728019841859,-230.864851,0.00013926,2]
[339811790,1728019841870,-151.0,0.00013926,2]
[339811791,1728019841880,-230.864851,0.00013926,2]
[339811792,1728019841890,-151.0,0.00013926,2]